bitfinex/quotes_BTCUSD_20251120
["timestamp","ask_amount","ask_price","bid_price","bid_amount"]
[1763602457317,0.91169119,92510.0,92509.0,1.0254285]
[1763602457758,0.41000572,92510.0,92509.0,1.0254285]
[1763602460816,0.50020838,92527.0,92518.0,0.512192]
[1763602460993,0.21363067,92527.0,92526.0,0.70545794]
[1763602461194,0.0004,92530.0,92529.0,0.21614845]
[1763602461399,0.00012619,92530.0,92529.0,1.10344294]
[1763602461617,0.0004,92540.0,92538.0,0.98922191]
[1763602461833,0.0004,92540.0,92538.0,1.14026191]
[1763602462047,0.0004,92540.0,92538.0,1.25055441]
[1763602462249,0.0004,92540.0,92538.0,1.28299938]
[1763602462854,0.0004,92540.0,92538.0,1.36370638]
[1763602463265,0.0004,92540.0,92539.0,0.77309449]
[1763602464404,1.11031142,92560.0,92543.0,0.98921024]
[1763602465244,1.06298948,92544.0,92543.0,0.99948227]
[1763602465387,1.03053951,92544.0,92543.0,0.99948227]
[1763602465810,1.03053951,92544.0,92543.0,1.00312227]
[1763602466067,1.03053951,92544.0,92543.0,1.15052227]
[1763602466195,1.03053951,92544.0,92543.0,1.14688227]
[1763602466411,1.03053951,92544.0,92543.0,1.15052227]
[1763602471143,1.03053951,92544.0,92543.0,1.18296713]
[1763602471344,1.03053951,92544.0,92543.0,0.85996713]
[1763602471557,1.03053951,92544.0,92543.0,1.15052227]
[1763602476433,1.03053951,92544.0,92543.0,0.75253027]
[1763602476637,1.03714477,92544.0,92543.0,1.15052227]
[1763602482073,1.03714477,92544.0,92543.0,1.18296857]
[1763602484302,0.32243572,92544.0,92543.0,1.18296857]
[1763602484511,1.11031142,92560.0,92559.0,0.59118088]
[1763602484723,1.11043759,92560.0,92559.0,0.99281288]
[1763602485141,1.11043759,92560.0,92559.0,1.02525157]
[1763602485342,1.11043759,92560.0,92559.0,1.17265157]
[1763602486200,0.61651863,92560.0,92559.0,1.17265157]
[1763602486382,0.26356326,92560.0,92559.0,1.17265157]
[1763602486635,0.23111783,92560.0,92559.0,1.16901157]
[1763602486843,0.01965239,92560.0,92559.0,1.17265157]
[1763602487046,0.0004,92570.0,92569.0,0.98914954]
[1763602487255,0.0004,92570.0,92569.0,1.13654954]
[1763602487459,0.0004,92570.0,92569.0,1.24684204]
[1763602487870,0.0004,92570.0,92569.0,1.39347666]
[1763602488076,0.0004,92570.0,92569.0,1.27927666]
[1763602488906,0.0004,92570.0,92569.0,1.28291666]
[1763602489105,0.0004,92570.0,92569.0,1.36393723]
[1763602490772,0.0004,92570.0,92569.0,1.21653723]
[1763602491185,0.00114618,92570.0,92569.0,1.21653723]
[1763602494729,0.00114618,92570.0,92569.0,1.25462046]
[1763602495135,0.00114618,92570.0,92569.0,1.40202046]
[1763602495614,1e-08,92570.0,92569.0,1.48396232]
[1763602495846,0.00855,92574.0,92573.0,0.9891402]
[1763602496771,0.00855,92574.0,92573.0,0.5947882]
[1763602496990,0.00855,92574.0,92573.0,0.9927802]
[1763602497442,0.00855,92574.0,92573.0,0.94067771]
[1763602498044,0.00855,92574.0,92573.0,0.9927802]
[1763602500179,0.01155,92574.0,92573.0,0.9927802]
[1763602500838,0.01155,92574.0,92573.0,0.9891402]
[1763602501061,0.01155,92574.0,92573.0,0.9927802]
[1763602502586,0.01155,92574.0,92573.0,1.1401802]
[1763602504211,1e-08,92574.0,92573.0,1.1401802]
[1763602504444,1.12458472,92577.0,92576.0,0.9891332]
[1763602504445,0.4947861,92577.0,92576.0,0.9891332]
[1763602504623,0.38178796,92577.0,92576.0,0.9891332]
[1763602505849,0.00044061,92590.0,92589.0,0.93700038]
[1763602506006,0.00044061,92590.0,92589.0,1.17548603]
[1763602506643,1.10655624,92610.0,92592.0,0.48930249]
[1763602507000,0.2358263,92610.0,92609.0,3.59106422]
[1763602507204,0.0004,92640.0,92624.0,0.21592465]
[1763602507316,0.0004,92640.0,92626.0,3.59102458]
[1763602507532,0.0004,92640.0,92626.0,3.62233926]
[1763602507732,0.0004,92640.0,92626.0,3.62164796]
[1763602507930,0.0004,92640.0,92626.0,3.62707499]
[1763602508363,1.12078483,92627.0,92626.0,3.62749577]
[1763602508561,1.12078483,92627.0,92626.0,3.70690233]
[1763602508762,0.5120183,92627.0,92626.0,3.70690233]
[1763602509022,0.02069232,92627.0,92626.0,3.73752571]
[1763602509208,0.0004,92640.0,92639.0,3.59099428]
[1763602509413,0.0004,92640.0,92639.0,3.59463428]
[1763602510250,0.98021461,92643.0,92642.0,0.48539499]
[1763602510462,0.70377615,92643.0,92642.0,3.48539499]
[1763602510681,0.68817996,92643.0,92642.0,3.48539499]
[1763602511335,0.68817996,92643.0,92642.0,3.48903499]
[1763602511766,0.69004359,92643.0,92642.0,3.48903499]
[1763602511977,0.65762868,92643.0,92642.0,3.48903499]
[1763602512191,0.62521377,92643.0,92642.0,3.48903499]
[1763602512408,0.59279886,92643.0,92642.0,3.48903499]
[1763602512617,0.56038395,92643.0,92642.0,3.52144011]
[1763602512970,0.55978395,92643.0,92642.0,3.52144011]
[1763602513213,0.56078395,92643.0,92642.0,3.52144011]
[1763602513617,0.22527442,92660.0,92659.0,3.59094768]
[1763602513829,0.04494093,92667.0,92666.0,3.59093138]
[1763602514097,1.14604016,92676.0,92675.0,3.59091042]
[1763602514303,1.07522525,92676.0,92675.0,3.59455042]
[1763602514524,1.05359425,92676.0,92675.0,3.59455042]
[1763602514734,1.05359425,92676.0,92675.0,3.62694816]
[1763602514883,1.05359425,92676.0,92675.0,3.63780352]
[1763602515099,1.05359425,92676.0,92675.0,3.41156101]
[1763602515261,1.02118706,92676.0,92675.0,3.42212462]
[1763602515464,0.98877987,92676.0,92675.0,3.42212462]
[1763602515688,0.98877987,92676.0,92675.0,3.452748]
[1763602515689,0.95637268,92676.0,92675.0,3.452748]
[1763602515893,0.95637268,92676.0,92675.0,3.45490802]
[1763602516231,0.95637268,92676.0,92675.0,3.42212462]
[1763602516425,0.92375549,92676.0,92675.0,3.42212462]
[1763602517059,0.8913483,92676.0,92675.0,0.45490802]
[1763602517258,0.85894111,92676.0,92675.0,3.45490802]
[1763602517661,0.85894111,92676.0,92675.0,3.42212462]
[1763602517870,0.2628925,92676.0,92675.0,3.42212462]
[1763602518071,0.23048531,92676.0,92675.0,0.42212462]
[1763602518276,0.19808636,92676.0,92675.0,3.42212462]
[1763602518435,4.012e-05,92680.0,92678.0,0.05210249]
[1763602518641,1.2190128,92710.0,92685.0,3.37510249]
[1763602519010,1.2190128,92710.0,92685.0,3.62367053]
[1763602519197,1.2190128,92710.0,92685.0,3.59088713]
[1763602519406,0.00231,92686.0,92685.0,3.59088713]
[1763602519720,0.00354187,92686.0,92685.0,3.59088713]
[1763602520300,0.00354187,92686.0,92685.0,3.53878464]
[1763602520503,0.00354187,92686.0,92685.0,3.54242464]
[1763602520819,0.00354187,92686.0,92685.0,3.59452713]
[1763602520961,0.00349187,92686.0,92685.0,3.59452713]
[1763602521567,0.00349187,92686.0,92685.0,3.54242464]
[1763602521952,0.00349187,92686.0,92685.0,3.59452713]
[1763602522351,0.00349187,92686.0,92685.0,3.32664]
[1763602523105,0.00649187,92686.0,92685.0,3.37874249]
[1763602523512,0.00349187,92686.0,92685.0,3.37874249]
[1763602523900,0.00649187,92686.0,92685.0,3.37874249]
[1763602524324,0.00649187,92686.0,92685.0,3.59452713]
[1763602524611,0.00849187,92686.0,92685.0,3.59452713]
[1763602524819,0.00849187,92686.0,92685.0,3.0]
[1763602525033,0.00849187,92686.0,92675.0,0.05417252]
[1763602525034,0.00849187,92686.0,92676.0,3.0]
[1763602525224,0.01078923,92685.0,92677.0,0.00364]
[1763602525425,0.00726,92686.0,92677.0,0.00364]
[1763602525625,0.00726,92686.0,92671.0,0.01079086]
[1763602525626,0.00726,92686.0,92678.0,0.00699985]
[1763602525825,0.00426,92686.0,92678.0,0.00742131]
[1763602526026,0.00226,92686.0,92680.0,3.0]
[1763602526363,0.01078934,92684.0,92678.0,0.00406146]
[1763602526738,0.01078923,92685.0,92678.0,0.00406146]
[1763602526969,0.01072923,92685.0,92678.0,0.00406146]
[1763602527342,0.00226,92686.0,92678.0,0.00406146]
[1763602527543,0.00226,92686.0,92680.0,0.002]
[1763602527757,0.01078923,92685.0,92680.0,0.002]
[1763602528193,0.00226,92686.0,92683.0,0.01078946]
[1763602528423,0.00226,92686.0,92683.0,0.22657762]
[1763602528621,0.00226,92686.0,92685.0,3.53878464]
[1763602529618,0.00226,92686.0,92685.0,3.323]
[1763602529815,0.00226,92686.0,92685.0,3.326]
[1763602530419,0.00226,92686.0,92685.0,3.323]
[1763602530814,0.00226,92686.0,92685.0,3.326]
[1763602531218,0.00226,92686.0,92685.0,3.331]
[1763602531604,0.00226,92686.0,92685.0,3.326]
[1763602531824,0.00226,92686.0,92685.0,3.331]
[1763602533044,0.00226,92686.0,92685.0,3.38310249]
[1763602535533,0.00226,92686.0,92685.0,3.41549991]
[1763602535855,0.00123188,92686.0,92685.0,3.41549991]
[1763602536034,1e-08,92686.0,92685.0,3.41249991]
[1763602536389,1e-08,92686.0,92685.0,3.41549991]
[1763602536855,0.72779789,92693.0,92692.0,0.59087084]
[1763602536991,0.3929593,92693.0,92692.0,3.59455084]
[1763602537194,0.0654743,92693.0,92692.0,3.59455084]
[1763602537447,1.07966765,92710.0,92709.0,3.59083127]
[1763602537619,1.04726044,92710.0,92709.0,3.60484669]
[1763602537816,0.51738302,92710.0,92709.0,3.60484669]
[1763602538020,0.76506748,92726.0,92720.0,0.4]
[1763602538221,0.74706748,92726.0,92725.0,3.59079405]
[1763602538641,0.74706748,92726.0,92725.0,3.59121551]
[1763602538840,0.74706748,92726.0,92725.0,3.62358916]
[1763602539240,0.69068014,92726.0,92725.0,3.62358916]
[1763602539445,0.69068014,92726.0,92725.0,3.62726916]
[1763602539890,0.69068014,92726.0,92725.0,3.62358916]
[1763602540097,0.69068014,92726.0,92725.0,3.62726916]
[1763602542485,0.69068014,92726.0,92725.0,3.62358916]
[1763602542701,0.69068014,92726.0,92725.0,3.24848667]
[1763602542906,0.6938253,92726.0,92725.0,0.00042146]
[1763602543100,0.6938253,92726.0,92725.0,0.00410146]
[1763602543302,0.6938253,92726.0,92725.0,0.00042146]
[1763602543539,0.6918253,92726.0,92725.0,0.00410146]
[1763602543874,0.6938253,92726.0,92725.0,0.00410146]
[1763602544102,0.6938253,92726.0,92725.0,0.00810146]
[1763602545019,0.6918253,92726.0,92725.0,0.00810146]
[1763602545459,0.6918253,92726.0,92725.0,0.01110146]
[1763602546987,0.6245893,92726.0,92725.0,0.01110146]
[1763602547561,0.88898853,92726.0,92725.0,0.00742146]
[1763602548009,0.21576553,92694.0,92671.0,0.01079086]
[1763602548233,0.21569156,92725.0,92671.0,0.0004216]
[1763602548234,0.01079028,92676.0,92671.0,0.0004216]
[1763602548454,0.22660076,92674.0,92671.0,0.0004216]
[1763602548651,0.01444,92679.0,92672.0,0.00368]
[1763602548985,0.02999997,92680.0,92672.0,0.00368]
[1763602549186,0.00999999,92680.0,92672.0,0.00368]
[1763602549370,0.01999998,92680.0,92674.0,0.01079051]
[1763602549574,0.02999997,92680.0,92672.0,0.0070428]
[1763602550093,0.02999997,92680.0,92672.0,0.0090428]
[1763602550299,0.01079039,92675.0,92672.0,0.00868]
[1763602550686,0.02999997,92680.0,92672.0,0.00868]
[1763602550940,0.01078993,92679.0,92672.0,0.00868]
[1763602551141,0.01079039,92675.0,92672.0,0.00568]
[1763602551507,0.21581025,92674.0,92672.0,0.00968]
[1763602551910,0.01078993,92679.0,92672.0,0.00768]
[1763602552122,0.04078978,92680.0,92672.0,0.00768]
[1763602552287,0.21581025,92674.0,92672.0,0.00968]
[1763602552499,0.0198,92673.0,92672.0,0.00968]
[1763602552676,0.0198,92673.0,92672.0,0.00568]
[1763602552901,0.0198,92673.0,92672.0,0.00668]
[1763602553115,0.04871,92673.0,92672.0,0.00868]
[1763602553315,0.04871,92673.0,92672.0,0.00568]
[1763602553516,0.02999997,92680.0,92672.0,0.00568]
[1763602553714,0.02999997,92680.0,92672.0,0.00968]
[1763602553914,0.02999997,92680.0,92674.0,0.01079051]
[1763602554138,0.02999997,92680.0,92673.0,0.01415338]
[1763602554318,0.02999997,92680.0,92673.0,0.00336276]
[1763602554514,0.00999999,92680.0,92676.0,0.01079028]
[1763602554908,0.00999999,92680.0,92675.0,0.0033616]
[1763602555114,0.02999997,92680.0,92673.0,0.00336187]
[1763602555316,0.02999997,92680.0,92676.0,0.01079028]
[1763602555524,0.02999997,92680.0,92675.0,0.01079039]
[1763602555725,0.01078946,92683.0,92676.0,0.002]
[1763602555939,0.01078876,92689.0,92676.0,0.002]
[1763602556149,0.04078862,92690.0,92676.0,0.01279028]
[1763602556353,0.02999997,92690.0,92677.0,0.01079016]
[1763602556556,0.02999997,92690.0,92679.0,0.01078993]
[1763602556987,0.02999997,92690.0,92678.0,0.01079004]
[1763602557345,0.02999997,92690.0,92677.0,0.33379016]
[1763602557552,0.02999997,92690.0,92679.0,0.22658854]
[1763602557729,0.02999997,92690.0,92683.0,0.01078946]
[1763602557943,0.02999997,92690.0,92684.0,0.00368]
[1763602558583,0.00022911,92694.0,92691.0,0.01078853]
[1763602558795,0.00022911,92694.0,92689.0,0.00335317]
[1763602559009,0.00022911,92694.0,92690.0,0.01078865]
[1763602559419,0.00022911,92694.0,92689.0,0.01078876]
[1763602559751,0.00022911,92694.0,92691.0,0.002]
[1763602560157,0.00022911,92694.0,92691.0,0.006]
[1763602560618,0.00022911,92694.0,92691.0,0.002]
[1763602561031,0.00022911,92694.0,92691.0,0.01078853]
[1763602561231,0.00022911,92694.0,92693.0,0.53876602]
[1763602561950,0.00022911,92694.0,92693.0,0.21576602]
[1763602563139,0.00122911,92694.0,92693.0,0.21576602]
[1763602565837,0.00122911,92694.0,92688.0,0.323]
[1763602566037,0.00122911,92694.0,92691.0,0.33378853]
[1763602566208,0.00122911,92694.0,92691.0,0.01078853]
[1763602566409,0.00122911,92694.0,92692.0,0.21576835]
[1763602567423,0.00122911,92694.0,92692.0,0.21912114]
[1763602567847,0.00022911,92694.0,92691.0,0.33378853]
[1763602568167,0.00022911,92694.0,92691.0,0.54955717]
[1763602568311,0.00022911,92694.0,92686.0,0.01078911]
[1763602568514,0.00422911,92694.0,92684.0,0.23025417]
[1763602568758,0.00422911,92694.0,92691.0,0.01078853]
[1763602568969,0.00022911,92694.0,92692.0,0.21576687]
[1763602569185,0.00022911,92694.0,92684.0,0.00368]
[1763602569396,0.02167,92685.0,92684.0,0.00368]
[1763602570407,0.02999997,92690.0,92684.0,0.00368]
[1763602570616,0.00022911,92694.0,92693.0,0.21576602]
[1763602571169,0.00022911,92694.0,92692.0,0.00535252]
[1763602571423,0.00022911,92694.0,92692.0,0.2211188]
[1763602571802,0.00022911,92694.0,92692.0,0.2191188]
[1763602572172,0.00022911,92694.0,92693.0,0.006]
[1763602572602,0.00022911,92694.0,92693.0,0.00335248]
[1763602574083,0.00022911,92694.0,92692.0,0.21776629]
[1763602574237,0.00022911,92694.0,92692.0,0.21576629]
[1763602574440,0.00022911,92694.0,92693.0,0.00735276]
[1763602574640,0.00022911,92694.0,92693.0,0.00535276]
[1763602574843,0.00022911,92694.0,92693.0,0.002]
[1763602575042,0.00022911,92694.0,92693.0,0.004]
[1763602575582,0.05201911,92694.0,92693.0,0.004]
[1763602575784,0.00022911,92694.0,92693.0,0.004]
[1763602575985,0.00022911,92694.0,92693.0,0.00735248]
[1763602576183,0.00022911,92694.0,92693.0,0.00935248]
[1763602576444,0.00022911,92694.0,92693.0,0.006]
[1763602576922,0.05201911,92694.0,92693.0,0.006]
[1763602577042,0.2677828,92694.0,92693.0,0.006]
[1763602577243,0.22657631,92684.0,92678.0,0.00368]
[1763602577450,0.01999998,92690.0,92678.0,0.00368]
[1763602577451,0.03666,92679.0,92678.0,0.00368]
[1763602577868,0.28257861,92679.0,92678.0,0.00368]
[1763602578084,0.06678,92679.0,92678.0,0.00368]
[1763602578795,0.06678,92679.0,92678.0,0.00868]
[1763602578997,0.06678,92679.0,92678.0,0.01068]
[1763602579454,2.06678,92679.0,92678.0,0.01068]
[1763602579663,2.06678,92679.0,92678.0,0.00568]
[1763602580529,2.06678,92679.0,92678.0,0.00368]
[1763602580948,2.06678,92679.0,92678.0,0.00468]
[1763602581828,2.28257861,92679.0,92678.0,0.00468]
[1763602582811,2.06678,92679.0,92678.0,0.00468]
[1763602583232,2.03666,92679.0,92678.0,0.00468]
[1763602583614,2.03666,92679.0,92678.0,0.00368]
[1763602583822,2.06678,92679.0,92678.0,0.00368]
[1763602584109,2.06678,92679.0,92678.0,0.00468]
[1763602584524,2.06678,92679.0,92678.0,0.00368]
[1763602584939,2.06678,92679.0,92678.0,0.00568]
[1763602585180,2.0,92679.0,92678.0,0.00568]
[1763602586576,2.0,92679.0,92678.0,0.00368]
[1763602587178,2.0,92679.0,92678.0,0.32668]
[1763602587583,2.0,92679.0,92678.0,0.32868]
[1763602591716,2.0,92679.0,92678.0,3.32868]
[1763602592369,2.004,92679.0,92678.0,3.38078249]
[1763602593204,2.004,92679.0,92678.0,3.37878249]
[1763602593517,2.007,92679.0,92678.0,3.37878249]
[1763602596624,2.007,92679.0,92678.0,0.323]
[1763602596821,2.007,92679.0,92678.0,0.32668]
[1763602598852,2.007,92679.0,92678.0,3.37878249]
[1763602601811,2.003,92679.0,92678.0,3.37878249]
[1763602602248,1.98944535,92679.0,92678.0,3.37878249]
[1763602602448,1.98644535,92679.0,92678.0,3.37878249]
[1763602602795,1.98944535,92679.0,92678.0,3.37878249]
[1763602605694,1.42278511,92679.0,92678.0,3.37878249]
[1763602606693,1.41978511,92679.0,92678.0,0.37878249]
[1763602606906,1.41878511,92679.0,92678.0,3.37878249]
[1763602607312,1.42178511,92679.0,92678.0,3.37878249]
[1763602608793,1.42178511,92679.0,92678.0,3.37510249]
[1763602608960,1.42178511,92679.0,92678.0,3.37874249]
[1763602611600,1.42178511,92679.0,92678.0,3.37510249]
[1763602611814,1.42178511,92679.0,92678.0,3.37874249]
[1763602612526,1.41878511,92679.0,92678.0,3.37874249]
[1763602612707,1.41878511,92679.0,92678.0,0.05574249]
[1763602612908,1.42178511,92679.0,92678.0,0.00364]
[1763602613073,1.41878511,92679.0,92678.0,0.00364]
[1763602613472,1.42178511,92679.0,92678.0,0.32664]
[1763602613716,1.41578511,92679.0,92678.0,0.32664]
[1763602614138,1.42078511,92679.0,92678.0,0.32664]
[1763602614340,1.41578511,92679.0,92678.0,0.32664]
[1763602614878,1.41578511,92679.0,92678.0,0.33064]
[1763602615057,1.42078511,92679.0,92678.0,0.33064]
[1763602615659,1.41578511,92679.0,92678.0,0.33064]
[1763602615863,1.41578511,92679.0,92678.0,0.33364]
[1763602618013,1.41578511,92679.0,92678.0,0.32964]
[1763602618250,1.41978511,92679.0,92678.0,0.32664]
[1763602618463,1.42478511,92679.0,92678.0,0.32664]
[1763602623816,1.44371511,92679.0,92671.0,0.0004216]
[1763602624037,1.44371511,92679.0,92630.0,0.2]
[1763602624038,0.01079097,92670.0,92630.0,0.2]
[1763602624252,0.01079097,92670.0,92667.0,0.00142047]
[1763602624253,0.23475423,92668.0,92667.0,0.00142047]
[1763602624470,0.01893,92668.0,92667.0,0.00142047]
[1763602624678,0.04737,92668.0,92667.0,0.00142047]
[1763602624886,0.04737,92668.0,92667.0,0.00510047]
[1763602625094,0.04737,92668.0,92667.0,0.00142047]
[1763602625938,0.04737,92668.0,92667.0,0.00242047]
[1763602626169,0.04737,92668.0,92667.0,0.00542047]
[1763602629827,0.21585684,92654.0,92653.0,0.00368]
[1763602630039,0.00999999,92630.0,92620.0,0.2107968]
[1763602630250,0.00999999,92630.0,92629.0,0.5389151]
[1763602630707,0.00999999,92630.0,92629.0,0.323]
[1763602631123,0.00999999,92630.0,92629.0,0.5389151]
[1763602631974,0.01399999,92630.0,92629.0,0.5389151]
[1763602632182,0.01799999,92630.0,92629.0,0.5389151]
[1763602632598,0.01399999,92630.0,92629.0,0.5389151]
[1763602632800,0.01899999,92630.0,92629.0,0.5389151]
[1763602633224,0.009,92630.0,92629.0,0.5389151]
[1763602635631,0.009,92630.0,92629.0,0.54000431]
[1763602638059,0.009,92630.0,92629.0,0.54368431]
[1763602639047,0.009,92630.0,92629.0,0.00476921]
[1763602639479,0.009,92630.0,92629.0,0.32776921]
[1763602639480,0.02793,92630.0,92629.0,0.32776921]
[1763602640315,0.02393,92630.0,92629.0,0.00476921]
[1763602640715,0.02493,92630.0,92629.0,0.00476921]
[1763602640919,0.05337,92630.0,92629.0,0.00476921]
[1763602641117,0.05237,92630.0,92629.0,0.00476921]
[1763602641366,0.04737,92630.0,92629.0,0.00476921]
[1763602641575,0.01441,92639.0,92633.0,0.01079528]
[1763602641576,0.2500644,92638.0,92633.0,0.01079528]
[1763602641758,0.01079528,92633.0,92629.0,0.00568]
[1763602641982,0.02250433,92634.0,92630.0,0.01079563]
[1763602642386,0.02166842,92634.0,92633.0,0.00097451]
[1763602642586,0.02698676,92638.0,92636.0,0.01079493]
[1763602642793,0.02698676,92638.0,92636.0,0.22669229]
[1763602642995,0.01441,92639.0,92637.0,0.00085982]
[1763602643209,0.01441,92639.0,92636.0,0.22669229]
[1763602643799,0.01441,92639.0,92635.0,0.01079505]
[1763602643997,0.04139647,92639.0,92635.0,0.01079505]
[1763602644335,0.04139647,92639.0,92636.0,0.22669371]
[1763602644482,0.01441,92639.0,92636.0,0.22869371]
[1763602644682,0.01441,92639.0,92637.0,0.21589458]
[1763602645477,0.0269853,92643.0,92642.0,0.2158848]
[1763602645681,0.02360344,92650.0,92648.0,0.21586921]
[1763602645900,0.00042312,92654.0,92651.0,0.22665702]
[1763602646130,0.00042312,92654.0,92653.0,0.21585917]
[1763602646346,0.00042312,92654.0,92653.0,0.00368]
[1763602646782,0.00042312,92654.0,92653.0,0.21953917]
[1763602647882,0.00042312,92654.0,92653.0,0.22153917]
[1763602648256,0.00042312,92654.0,92653.0,0.00568]
[1763602650384,0.01780312,92654.0,92653.0,0.00568]
[1763602650610,0.02740522,92654.0,92653.0,0.00568]
[1763602650771,0.01780312,92654.0,92653.0,0.00608115]
[1763602651377,0.23312542,92654.0,92653.0,0.00581709]
[1763602651599,0.25984542,92654.0,92653.0,0.00581709]
[1763602651801,0.04398858,92654.0,92653.0,0.00581709]
[1763602652204,0.25984542,92654.0,92653.0,0.00581709]
[1763602652905,0.25984542,92654.0,92653.0,0.00240115]
[1763602653752,0.25984542,92654.0,92653.0,0.00040115]
[1763602654287,0.25984542,92654.0,92653.0,0.00140115]
[1763602655202,0.28007117,92654.0,92653.0,0.00140115]
[1763602655403,0.33217366,92654.0,92653.0,0.00140115]
[1763602656265,0.33217366,92654.0,92653.0,0.00040115]
[1763602656461,0.33217366,92654.0,92615.0,0.323]
[1763602656462,0.00999999,92610.0,92599.0,0.010692]
[1763602656815,0.01079843,92606.0,92601.0,0.53897807]
[1763602656939,0.0107996,92596.0,92580.0,0.01120146]
[1763602657196,0.03187,92591.0,92584.0,0.010801]
[1763602657396,0.03187,92591.0,92590.0,0.00408]
[1763602657599,0.03187,92591.0,92590.0,0.00450312]
[1763602658022,0.03187,92591.0,92590.0,0.22050916]
[1763602658227,0.0107996,92596.0,92593.0,0.01079995]
[1763602658425,0.01829,92594.0,92590.0,0.23130946]
[1763602658624,0.01829,92591.0,92590.0,0.00450312]
[1763602659043,0.04423,92591.0,92590.0,0.00450312]
[1763602659598,0.26023371,92591.0,92590.0,0.00650312]
[1763602659995,0.26023371,92591.0,92590.0,0.00450312]
[1763602660253,0.26023371,92591.0,92590.0,0.00082312]
[1763602660449,0.26023371,92591.0,92590.0,0.00650312]
[1763602661281,0.23429371,92591.0,92590.0,0.00650312]
[1763602661480,0.0107996,92596.0,92591.0,0.01080018]
[1763602661804,0.01079971,92595.0,92591.0,0.01080018]
[1763602661980,0.03357998,92600.0,92595.0,0.01079971]
[1763602662181,0.04357997,92600.0,92591.0,0.01080018]
[1763602662381,0.02357999,92600.0,92598.0,0.21598532]
[1763602662943,0.02357999,92600.0,92597.0,0.01079948]
[1763602662944,0.01079773,92612.0,92606.0,0.01079843]
[1763602663125,0.01079773,92612.0,92607.0,0.00368]
[1763602663324,0.01079785,92611.0,92608.0,0.0107982]
[1763602663530,0.01079762,92613.0,92608.0,0.22676226]
[1763602663811,0.24032592,92615.0,92607.0,0.32668]
[1763602663986,0.01079796,92610.0,92607.0,0.00368]
[1763602664162,0.21596173,92609.0,92607.0,0.00368]
[1763602664615,0.01358,92615.0,92610.0,0.21595939]
[1763602664780,0.01079796,92610.0,92607.0,0.33747831]
[1763602664978,0.03457446,92612.0,92607.0,0.33747831]
[1763602665192,0.01079785,92611.0,92608.0,0.002]
[1763602665401,0.02181948,92610.0,92608.0,0.002]
[1763602665606,0.03261744,92610.0,92607.0,0.32668]
[1763602665932,0.02181948,92610.0,92607.0,0.21964568]
[1763602666105,0.02181948,92610.0,92607.0,0.23244399]
[1763602666362,0.01829,92608.0,92607.0,0.00568]
[1763602666505,0.0242808,92608.0,92607.0,0.00568]
[1763602666710,0.0242808,92608.0,92607.0,0.22164639]
[1763602667422,0.0242808,92608.0,92607.0,0.00568]
[1763602667603,0.0269955,92608.0,92607.0,0.01647831]
[1763602667810,0.01079773,92612.0,92607.0,0.2304447]
[1763602668011,0.03459276,92611.0,92607.0,0.2304447]
[1763602668233,0.03459276,92611.0,92607.0,0.2324447]
[1763602668489,0.01829,92608.0,92607.0,0.00568]
[1763602668694,0.0452855,92608.0,92607.0,0.00368]
[1763602668911,0.0712255,92608.0,92607.0,0.00368]
[1763602669087,0.0712255,92608.0,92607.0,0.00568]
[1763602669521,0.0712255,92608.0,92607.0,0.00368]
[1763602669999,0.0712255,92608.0,92607.0,0.00568]
[1763602670746,0.06244306,92608.0,92607.0,0.00568]
[1763602672071,0.06982957,92608.0,92607.0,0.00568]
[1763602672324,0.08340957,92608.0,92607.0,0.00568]
[1763602672735,0.0848055,92608.0,92607.0,0.00568]
[1763602677175,0.30076956,92608.0,92607.0,0.00568]
[1763602677396,0.27377406,92608.0,92607.0,0.00568]
[1763602678043,0.27377406,92608.0,92594.0,0.01079983]
[1763602678044,0.21599671,92594.0,92591.0,0.00022949]
[1763602678261,0.24508654,92594.0,92593.0,0.00364]
[1763602678486,0.27102654,92594.0,92593.0,0.00364]
[1763602680467,0.27102654,92594.0,92593.0,0.00564]
[1763602680895,0.03673901,92601.0,92597.0,0.01079948]
[1763602681127,0.02699754,92601.0,92598.0,0.01079936]
[1763602681559,0.22679349,92596.0,92593.0,0.00564]
[1763602681768,0.01829,92594.0,92593.0,0.00564]
[1763602681979,0.01829,92594.0,92593.0,0.00364]
[1763602682219,0.02699929,92595.0,92593.0,0.00364]
[1763602682454,0.02699929,92595.0,92593.0,0.21963804]
[1763602682657,0.02699842,92598.0,92595.0,0.01079971]
[1763602682863,0.02699842,92598.0,92597.0,0.21598971]
[1763602683681,0.22679377,92596.0,92593.0,0.00564]
[1763602683882,0.01692,92594.0,92593.0,0.00564]
[1763602684090,0.01692,92594.0,92593.0,0.00364]
[1763602684652,0.04202,92594.0,92593.0,0.00364]
[1763602685267,0.01080018,92591.0,92588.0,0.01080053]
[1763602685469,0.21600604,92590.0,92589.0,0.00364]
[1763602685695,0.02700075,92590.0,92589.0,0.00364]
[1763602685854,0.04392075,92590.0,92589.0,0.00364]
[1763602686474,0.00042259,92591.0,92589.0,0.00364]
[1763602686934,0.21642631,92591.0,92589.0,0.00364]
[1763602687074,0.04392075,92590.0,92589.0,0.00364]
[1763602687600,0.04392075,92590.0,92589.0,0.00564]
[1763602687921,0.06902075,92590.0,92589.0,0.00564]
[1763602688113,0.06902075,92590.0,92589.0,0.00364]
[1763602688523,0.28502679,92590.0,92589.0,0.00564]
[1763602688838,0.04202,92590.0,92589.0,0.00564]
[1763602688963,0.01692,92590.0,92589.0,0.00564]
[1763602689785,0.23292604,92590.0,92589.0,0.00564]
[1763602690139,0.25802604,92590.0,92589.0,0.00564]
[1763602690341,0.01692,92590.0,92589.0,0.00564]
[1763602691648,0.00042259,92591.0,92589.0,0.22164618]
[1763602692725,0.00042259,92591.0,92589.0,0.21964618]
[1763602692925,0.00242259,92591.0,92589.0,0.21964618]
[1763602694212,0.00242259,92591.0,92583.0,0.00586953]
[1763602694213,0.02691999,92590.0,92583.0,0.00586953]
[1763602694418,0.02999997,92590.0,92588.0,0.2160088]
[1763602694816,0.00242259,92591.0,92588.0,0.01080053]
[1763602695008,0.02942305,92591.0,92589.0,0.21600838]
[1763602695274,0.00142259,92591.0,92589.0,0.21600838]
[1763602695550,0.005,92590.0,92589.0,0.21600838]
[1763602695752,0.00042259,92591.0,92589.0,0.21600838]
[1763602696056,0.005,92590.0,92589.0,0.21600838]
[1763602696555,0.00142259,92591.0,92589.0,0.21600838]
[1763602696745,0.005,92590.0,92589.0,0.21600838]
[1763602697137,0.01499999,92590.0,92584.0,0.00364]
[1763602697340,0.00999999,92590.0,92589.0,0.21600838]
[1763602697537,0.01499999,92590.0,92589.0,0.21600838]
[1763602697935,0.01499999,92590.0,92584.0,0.014441]